[Event "1st Doppelbauer Kiel IM 2022"]
[Site "Kiel"]
[Date "2022.06.30"]
[Round "2.1"]
[White "Beeck, Mats"]
[Black "Kopylov, Daniel"]
[Result "0-1"]
[ECO "A34"]
[WhiteElo "2169"]
[BlackElo "2292"]
[Annotator "TA"]
[PlyCount "170"]
[EventDate "2022.06.30"]
[EventType "tourn"]
[EventCountry "GER"]
[SourceTitle "playchess.com"]
[Source "ChessBase"]
[SourceQuality "1"]
[TimeControl "40/5400+30:1800+30"]

{[%evp 9,170,5,21,15,17,12,17,11,13,15,11,15,41,16,12,0,6,2,7,3,8,0,0,0,0,-31,-27,-25,-31,-29,-26,-23,-21,-18,-19,-13,-18,-133,-135,-131,-143,-126,-117,-115,-127,-110,-115,-225,-108,-98,-59,-97,-90,-110,-103,-137,-82,-176,-37,-37,-12,-15,0,-572,-571,-550,0,0,0,0,0,-77,-75,-89,0,-81,-77,-112,-112,-112,-88,-112,-112,-112,-112,-112,-112,-113,-113,-113,-112,-113,-112,-113,-113,-113,-112,-112,-112,-113,-85,-85,-85,-85,-85,-85,-85,-85,-85,-85,-85,-85,-85,-85,-85,-85,-85,-85,-85,-85,-8,-100,-100,-100,-100,-100,-100,-100,-100,-100,0,-100,-100,-100,-100,-100,-100,-100,0,-100,-92,-100,-100,-100,0,0,0,0,0,0,0,-29972,-29973,-29972,-29975,-29974,-29975,-29974,-29976,-29982,-29983,-29982,-29983]} 1. Nf3 {[%emt 0:00:29]} Nf6 {[%emt 0:00:45]} 2. c4 {[%emt 0:00:06]} c5 {[%emt 0:00:54]} 3. Nc3 {[%emt 0:00:20]} d5 {[%emt 0:01:05]} 4. cxd5 {[%emt 0:00:08]} Nxd5 {[%emt 0:00:08]} 5. e3 {[%emt 0:01:08]} Nxc3 {[%emt 0:01:37]} 6. dxc3 {[%emt 0:04:20] A34: Symmetrical English: 2 Nc3, lines with ...d5.} Qc7 {[%emt 0:00:36]} 7. e4 {[%emt 0:01:36]} Nc6 {[%emt 0:06:38]} 8. Bc4 {[%emt 0:05:22] The position is equal.} e6 {[%emt 0:01:50]} 9. O-O {[%emt 0:03:31] [#]} Be7 $146 {[%emt 0:02:28]} ({Predecessor:} 9... Bd6 10. Bg5 h6 11. Bh4 O-O 12. Qe2 Na5 13. e5 Nxc4 14. Qxc4 Bxe5 15. Nxe5 Qxe5 16. Be7 Re8 17. Qxc5 Qxc5 {½-½ (17) Bu,X (2710)-Svidler,P (2751) Tbilisi 2017}) 10. Qe2 {[%emt 0:01:01]} b6 {[%emt 0:02:17]} 11. Rd1 {[%emt 0:04:37]} Bb7 {[%emt 0:01:15]} 12. Ba6 {[%emt 0:05:02]} (12. Ng5 {seems wilder.} Na5 13. Bb5+ Bc6 14. Nh3) 12... O-O {[%emt 0:07:50]} 13. Bxb7 {[%emt 0:01:00]} Qxb7 {[%emt 0:00:08]} 14. Bf4 {[%emt 0:00:33]} Rfd8 {[%emt 0:08:28]} 15. Nd2 {[%emt 0:04:19]} b5 {[%emt 0:10:27]} 16. e5 {[%emt 0:13:36]} Rd5 {[%emt 0:17:30]} 17. Nf1 {[%emt 0:07:00]} (17. Ne4 $5 {[%cal Rd1d5]}) 17... Rad8 {[%emt 0:02:57]} 18. Rxd5 {[%emt 0:00:50]} Rxd5 {[%emt 0:00:53]} 19. a4 {[%emt 0:04:44]} a6 {[%emt 0:01:30][%cal Ba7a6,Ba6b5,Bb5b4][%mdl 32]} 20. Ne3 {[%emt 0:04:27] Strongly threatening axb5.} Rd7 {[%emt 0:00:58]} 21. axb5 {[%emt 0:00:36]} axb5 {[%emt 0:00:43]} 22. h3 {[%emt 0:11:17]} c4 {[%emt 0:01:36]} 23. b3 {[%emt 0:10:02]} (23. Qf3 $11) 23... cxb3 $17 {[%emt 0:03:59]} 24. Qb2 {[%emt 0:00:11]} b4 {[%emt 0:02:36]} 25. Qxb3 {[%emt 0:03:54]} Rd3 {[%emt 0:03:22]} 26. Nd1 {[%emt 0:04:56]} Nd4 {[%emt 0:09:39] Inhibits Qc2.} 27. Qb2 {[%emt 0:01:32]} Nf5 {[%emt 0:08:39] 0x0.00166ffd9abcdp-1022s more active pieces.} 28. cxb4 {[%emt 0:02:00]} (28. Qe2 $17 {is a better defense.} Nh4 29. f3) 28... g5 {[%emt 0:00:40]} (28... Bxb4 29. Ne3 Rd2 30. Qb1 $11 (30. Qxb4 $2 Qxb4 31. Ra8+ Qf8 $19)) (28... Qe4 $19 {has better winning chances.} 29. Qc2 Qe1+ 30. Kh2 Rd8) 29. Be3 {[%emt 0:02:01]} Qd5 $40 {[%emt 0:02:52][%mdl 1152] Black has strong compensation. White needs to defend precisely.} 30. Qe2 {[%emt 0:01:15]} Nh4 $1 {[%emt 0:00:37][%csl Gh4][%cal Rd5g2]} 31. f3 {[%emt 0:00:34]} Nf5 {[%emt 0:00:18]} 32. Bf2 {[%emt 0:01:43]} Rd2 {[%emt 0:00:01]} (32... Bxb4 $142 {And now ...Rd2 would win.} 33. Qf1 Rd2) 33. Qf1 {[%emt 0:00:34]} (33. Ra8+ $2 Kg7 34. Nc3 Rxe2 $19) (33. Qe1 $17) 33... Qxe5 {[%emt 0:00:06]} (33... Bxb4 $19 34. Ne3 Nxe3 35. Bxe3 Bc5) 34. Qe1 $15 {[%emt 0:02:09]} Re2 {[%emt 0:01:25]} 35. Qc3 {[%emt 0:00:04]} Qd5 {[%emt 0:00:38]} 36. Ne3 $2 {[%emt 0:01:00][%mdl 8192]} (36. b5 $1 $11 {and White is okay.}) 36... Nxe3 $19 {[%emt 0:00:30]} 37. Bxe3 {[%emt 0:00:01] [#]} Bxb4 {[%emt 0:00:28]} 38. Qxb4 $11 {[%emt 0:00:44]} Rxe3 $19 {[%emt 0:00:02][%mdl 4096] Endgame KQR-KQR} 39. Qb8+ {[%emt 0:00:34]} Kg7 {[%emt 0:00:06]} 40. Qb2+ {[%emt 0:00:27]} (40. Ra8 $1 $11) 40... Kg6 {[%emt 0:01:04]} 41. Qc2+ {[%emt 0:01:46]} Kg7 {[%emt 0:04:48] aiming for ...Qd4.} 42. Qb2+ {[%emt 0:01:00]} e5 {[%emt 0:03:03]} 43. Kh1 {[%emt 0:04:13]} h5 {[%emt 0:03:44]} 44. Qb4 {[%emt 0:04:39]} Re2 {[%emt 0:12:21]} 45. Rc1 {[%emt 0:09:28]} Qd2 {[%emt 0:07:33]} (45... Rd2 {looks sharper.} 46. Rc8 Rd1+ 47. Kh2 Qd6) 46. Qxd2 {[%emt 0:00:09]} Rxd2 $17 {[%emt 0:00:01] KR-KR} 47. Kg1 {[%emt 0:00:41]} h4 {[%emt 0:01:22]} 48. Rc5 {[%emt 0:00:46]} Kf6 {[%emt 0:00:23]} 49. Rc7 {[%emt 0:01:27]} Ke6 {[%emt 0:00:06]} 50. Kf1 {[%emt 0:00:33]} f6 {[%emt 0:00:31]} 51. Ra7 {[%emt 0:01:29]} Kf5 {[%emt 0:01:35] Hoping for ...Kf4.} 52. Ra6 {[%emt 0:00:10]} Kg6 {[%emt 0:00:53]} 53. Rb6 {[%emt 0:00:13]} Kf7 {[%emt 0:00:12]} 54. Ra6 {[%emt 0:00:18]} f5 {[%emt 0:00:18]} 55. Rb6 {[%emt 0:00:17]} Rd4 {[%emt 0:00:52]} 56. Ke2 {[%emt 0:00:35]} e4 {[%emt 0:00:18]} 57. fxe4 {[%emt 0:00:10]} Rxe4+ {[%emt 0:00:02]} 58. Kf2 {[%emt 0:00:27]} Re6 {[%emt 0:00:04]} 59. Rb5 {[%emt 0:00:59]} Kg6 {[%emt 0:00:02]} 60. Ra5 {[%emt 0:00:14]} Rb6 {[%emt 0:00:03]} 61. Rc5 {[%emt 0:00:45]} Rd6 {[%emt 0:01:28]} 62. Rb5 {[%emt 0:00:20]} Rd2+ {[%emt 0:00:43]} 63. Kf3 {[%emt 0:02:15]} Rd3+ {[%emt 0:00:05]} 64. Kf2 {[%emt 0:00:16]} g4 {[%emt 0:00:41]} (64... Kf6 $17 65. Ra5 Ke6) 65. hxg4 {[%emt 0:00:23]} (65. Rb6+ $1 $11 {remains equal.} Kg5 66. hxg4) 65... fxg4 {[%emt 0:00:02]} 66. Rb6+ {[%emt 0:00:42]} Kf5 {[%emt 0:00:13]} 67. Rb5+ {[%emt 0:00:06]} Ke4 $1 {[%emt 0:00:32]} 68. Rb8 {[%emt 0:05:29]} Rd2+ {[%emt 0:01:38]} 69. Kf1 {[%emt 0:00:06]} Rd3 {[%emt 0:01:15]} ({Of course not} 69... h3 $6 70. gxh3 gxh3 71. Kg1 $11) (69... Kf5 $17 70. Rf8+ Ke5) 70. Ke2 {[%emt 0:00:53]} (70. Kf2 $1 $11) 70... Rd4 {[%emt 0:00:31]} 71. Rf8 {[%emt 0:00:52]} (71. Rh8 Kf4 72. Kf2 (72. Rxh4 $2 Kg3 $19) 72... Rd2+ 73. Ke1 Ra2 74. Rxh4 Kg3 $19) 71... Ra4 {[%emt 0:00:05] ...Ra1 is the strong threat.} 72. Kf2 {[%emt 0:00:51]} Ra2+ {[%emt 0:00:35]} 73. Kg1 {[%emt 0:01:01] [#]} Ke3 {[%emt 0:00:39]} (73... g3 $1 $17 74. Re8+ Kd3 75. Rd8+ Kc4 76. Rc8+ Kd5 77. Rd8+ Ke6 78. Re8+ Kd6) 74. Rf1 {[%emt 0:03:41]} (74. g3 $11 {keeps the balance.}) 74... Rd2 {[%emt 0:00:11]} 75. Kh1 {[%emt 0:00:31]} Ke2 {[%emt 0:00:36]} 76. Rf8 {[%emt 0:00:22] [#]} Rd1+ {[%emt 0:00:57]} ({Better is} 76... g3 $1 $17 {( -> ...Rd1+)} 77. Re8+ Kd3 78. Rd8+ Kc2 79. Rc8+ Kd3 80. Rd8+ Ke2 81. Re8+ Kf1) 77. Kh2 $11 {[%emt 0:00:02]} g3+ {[%emt 0:00:12]} 78. Kh3 {[%emt 0:00:01]} Rh1+ {[%emt 0:00:05]} 79. Kg4 {[%emt 0:00:04]} Rf1 {[%emt 0:00:32]} 80. Re8+ $2 {[%emt 0:00:41][%mdl 8192]} (80. Rb8 $11) 80... Kf2 {[%emt 0:00:13] Black mates.} 81. Kxh4 {[%emt 0:00:05]} Kxg2 {[%emt 0:00:16]} 82. Kg4 {[%emt 0:00:43]} Ra1 {[%emt 0:01:21]} 83. Re4 {[%emt 0:00:22]} Kh2 {[%emt 0:00:42]} 84. Kf3 {[%emt 0:00:30]} Rf1+ {[%emt 0:00:20]} 85. Ke2 {[%emt 0:00:10]} g2 {[%emt 0:00:20] Weighted Error Value: White=0.27 (precise) /Black=0.21 (precise)} 0-1

[Event "1st Doppelbauer Kiel IM 2022"]
[Site "Kiel"]
[Date "2022.06.30"]
[Round "2.2"]
[White "Barseghyan, Armen Ar."]
[Black "Fischer, Daniel"]
[Result "1/2-1/2"]
[ECO "D27"]
[WhiteElo "2378"]
[BlackElo "2367"]
[Annotator "TA"]
[PlyCount "255"]
[EventDate "2022.06.30"]
[EventType "tourn"]
[EventCountry "GER"]
[SourceTitle "playchess.com"]
[Source "ChessBase"]
[SourceQuality "1"]
[TimeControl "40/5400+30:1800+30"]

{[%evp 46,255,0,-10,-6,-6,-7,-10,-15,-5,-7,-12,12,0,0,0,0,0,0,0,0,0,0,0,0,0,0,0,0,0,0,0,0,0,0,0,0,0,4,0,0,0,0,0,0,0,0,0,14,14,14,14,14,5,12,6,10,0,0,0,0,0,0,0,0,0,0,0,0,0,0,0,0,0,0,0,-8,-16,0,0,0,0,0,0,0,0,0,0,0,0,0,0,0,0,0,0,0,0,0,0,0,0,0,0,0,0,0,0,0,0,0,0,0,0,0,0,0,0,0,0,0,0,0,0,0,0,0,0,0,0,0,0,0,0,0,0,0,0,0,0,0,0,0,0,0,0,0,0,0,0,0,0,0,0,0,0,0,0,0,0,0,0,0,0,0,0,0,0,0,0,0,0,0,0,0,0,0,0,0,0,0,0,0,0,0,0,0,0,0,0,0,0,0,0,0,0,0,0,0,0,0,0,0,0,0,0,8,8,8,8,8,8]} 1. d4 {[%emt 0:00:06]} Nf6 {[%emt 0:00:03]} 2. c4 {[%emt 0:00:16]} e6 {[%emt 0:00:05]} 3. Nf3 {[%emt 0:00:16]} d5 {[%emt 0:00:04]} 4. Nc3 {[%emt 0:00:20]} dxc4 {[%emt 0:00:19]} 5. e3 {[%emt 0:00:40]} a6 {[%emt 0:00:27]} 6. a4 {[%emt 0:00:57]} c5 {[%emt 0:00:09]} 7. Bxc4 {[%emt 0:00:33]} Nc6 {[%emt 0:00:05]} 8. O-O {[%emt 0:00:23]} Be7 {[%emt 0:00:14]} 9. dxc5 {[%emt 0:03:06]} Qxd1 {[%emt 0:01:50]} 10. Rxd1 {[%emt 0:00:05]} Bxc5 {[%emt 0:00:05]} 11. Bd2 {[%emt 0:00:40]} Ke7 {[%emt 0:16:42]} 12. a5 {[%emt 0:04:31]} Rd8 {[%emt 0:12:21]} 13. Na4 {[%emt 0:02:15]} Ba7 {[%emt 0:02:20]} 14. b4 {[%emt 0:06:22]} Ne4 {[%emt 0:05:40]} 15. Be1 {[%emt 0:03:40]} Rxd1 {[%emt 0:01:04]} 16. Rxd1 {[%emt 0:00:03]} Bd7 {[%emt 0:01:32]} 17. Bd3 {[%emt 0:13:16]} Nf6 {[%emt 0:05:57]} 18. Rb1 {[%emt 0:04:00]} Rc8 {[%emt 0:08:22]} 19. Nc5 {[%emt 0:18:28]} Bxc5 {[%emt 0:10:53]} 20. bxc5 {[%emt 0:00:08]} Rc7 {[%emt 0:00:14]} 21. Bc3 {[%emt 0:05:10]} Bc8 {[%emt 0:03:54]} 22. Nd2 {[%emt 0:07:58]} g6 {[%emt 0:06:12]} 23. e4 {[%emt 0:10:16]} Nd7 {[%emt 0:04:22]} 24. Nb3 {[%emt 0:00:35]} e5 {[%emt 0:03:00]} 25. Bc4 {[%emt 0:05:07]} Nf6 {[%emt 0:03:42]} 26. Bd5 {[%emt 0:00:05]} Be6 {[%emt 0:00:31]} 27. Bxc6 {[%emt 0:00:46]} Rxc6 {[%emt 0:00:04]} 28. Nd2 {[%emt 0:00:50]} Bc8 {[%emt 0:01:22]} 29. Rb6 {[%emt 0:06:59]} Nd7 {[%emt 0:03:59]} 30. Rxc6 $1 {[%emt 0:01:12]} bxc6 {[%emt 0:00:02]} 31. Nc4 {[%emt 0:00:06]} f6 {[%emt 0:00:12]} 32. Nd6 {[%emt 0:02:37]} Kd8 {[%emt 0:00:02]} 33. Bb4 {[%emt 0:00:15]} Nf8 {[%emt 0:01:07]} 34. g3 {[%emt 0:00:21]} Be6 {[%emt 0:02:14]} 35. Kg2 {[%emt 0:00:50]} Nd7 {[%emt 0:00:31]} 36. Kf3 {[%emt 0:00:59]} Ke7 {[%emt 0:00:53]} 37. Ke3 {[%emt 0:00:05]} Kf8 {[%emt 0:02:13]} 38. Kd3 {[%emt 0:01:41]} Ke7 {[%emt 0:00:30]} 39. Ba3 {[%emt 0:01:04]} Nf8 {[%emt 0:01:13]} 40. Bc1 {[%emt 0:00:24]} Nd7 {[%emt 0:01:01]} 41. Be3 {[%emt 0:30:05]} Ba2 {[%emt 0:31:25]} 42. Kc2 {[%emt 0:01:03]} Be6 {[%emt 0:00:46]} 43. Kc3 {[%emt 0:00:05]} Ba2 {[%emt 0:00:18]} 44. f4 {[%emt 0:00:56]} exf4 {[%emt 0:00:00]} 45. gxf4 {[%emt 0:00:00]} Be6 {[%emt 0:00:00]} 46. Bf2 {[%emt 0:00:00]} f5 {[%emt 0:00:00]} 47. Bh4+ {[%emt 0:00:00]} Kf8 {[%emt 0:00:00]} 48. exf5 {[%emt 0:00:00]} Bxf5 {[%emt 0:00:00]} 49. Kd4 {[%emt 0:00:00]} Bh3 {[%emt 0:00:00]} 50. Bg5 {[%emt 0:00:00]} Kg7 {[%emt 0:00:00]} 51. Be7 {[%emt 0:00:00]} Kg8 {[%emt 0:00:00]} 52. Ne4 {[%emt 0:00:00]} Kg7 {[%emt 0:00:00]} 53. Nd6 {[%emt 0:00:00]} Kg8 {[%emt 0:09:01]} 54. Nb7 {[%emt 0:00:01]} Kg7 {[%emt 0:00:00]} 55. Nd8 {[%emt 0:00:17]} Bg2 {[%emt 0:00:00]} 56. Ke3 {[%emt 0:00:19]} Bd5 {[%emt 0:00:00]} 57. Kf2 {[%emt 0:00:08]} Be4 {[%emt 0:00:00]} 58. Kg3 {[%emt 0:00:04]} Bd5 {[%emt 0:00:00]} 59. Kg4 {[%emt 0:00:06]} Nf6+ {[%emt 0:00:00]} 60. Bxf6+ {[%emt 0:00:28]} Kxf6 {[%emt 0:00:00]} 61. Nb7 $1 {[%emt 0:01:08]} Be6+ {[%emt 0:00:00]} 62. Kf3 {[%emt 0:01:42]} Bd5+ {[%emt 0:00:00]} 63. Ke3 {[%emt 0:02:41]} g5 {[%emt 0:00:00]} 64. Nd6 {[%emt 0:01:26]} gxf4+ {[%emt 0:00:00]} 65. Kxf4 {[%emt 0:00:03]} Ke6 {[%emt 0:00:26]} 66. Ne8 {[%emt 0:00:41]} Bc4 $1 {[%emt 0:00:13]} 67. Ke4 {[%emt 0:00:04]} Bf1 {[%emt 0:00:37]} 68. Ng7+ {[%emt 0:02:48]} Kf6 {[%emt 0:00:05]} 69. Nh5+ {[%emt 0:00:02]} Ke6 {[%emt 0:00:35]} 70. Ng3 {[%emt 0:00:58]} Bc4 {[%emt 0:01:18]} 71. Kd4 {[%emt 0:00:03]} Bb5 {[%emt 0:00:49]} 72. Ne4 {[%emt 0:01:30]} Kf5 {[%emt 0:00:05]} 73. Nd6+ {[%emt 0:01:04]} Ke6 {[%emt 0:00:04]} 74. Ke4 {[%emt 0:00:38]} (74. Nxb5 cxb5 75. Ke4 b4) 74... Bf1 {[%emt 0:00:16]} 75. Ne8 {[%emt 0:00:30]} Bg2+ {[%emt 0:00:20]} 76. Kd4 {[%emt 0:01:21]} Bf1 {[%emt 0:00:42]} 77. Ng7+ {[%emt 0:00:09]} Kf6 {[%emt 0:00:11]} 78. Nh5+ {[%emt 0:00:09]} Ke6 {[%emt 0:00:22]} 79. Ke4 {[%emt 0:00:25]} Bg2+ {[%emt 0:00:33]} 80. Kd4 {[%emt 0:00:25]} Bf1 {[%emt 0:01:27]} 81. Ng3 {[%emt 0:00:06]} Bb5 {[%emt 0:00:16]} 82. Ke4 {[%emt 0:00:46]} Bc4 {[%emt 0:00:05]} 83. Nh5 {[%emt 0:00:08]} Bf1 {[%emt 0:00:40]} 84. Kd4 {[%emt 0:01:16]} Bb5 {[%emt 0:00:43]} 85. Ng3 {[%emt 0:00:05]} Kf6 {[%emt 0:00:34]} 86. Ke4 {[%emt 0:00:05]} Ke6 {[%emt 0:00:29]} 87. Nh1 {[%emt 0:00:54]} Bf1 {[%emt 0:00:46]} 88. Nf2 {[%emt 0:00:48]} Bg2+ {[%emt 0:00:18]} 89. Kd4 {[%emt 0:00:03]} Bf1 {[%emt 0:00:29]} 90. Ng4 {[%emt 0:00:09]} Bb5 {[%emt 0:01:22]} 91. Ke4 {[%emt 0:00:18]} Bf1 {[%emt 0:00:30]} 92. Ne3 {[%emt 0:00:03]} Be2 {[%emt 0:00:27]} 93. Nc2 {[%emt 0:00:34]} Kf6 {[%emt 0:00:50]} 94. Nd4 {[%emt 0:00:36]} Bf1 {[%emt 0:00:29]} 95. Kf4 {[%emt 0:00:52]} Bg2 {[%emt 0:01:15]} 96. Nc2 {[%emt 0:00:25]} Bf1 {[%emt 0:00:31]} 97. Nb4 {[%emt 0:00:29]} Bb5 {[%emt 0:00:26]} 98. Ke4 {[%emt 0:00:46]} Ke6 {[%emt 0:00:13]} 99. Nc2 {[%emt 0:00:03]} Kf6 {[%emt 0:00:39]} 100. Kf4 {[%emt 0:00:39]} Bf1 {[%emt 0:00:23]} 101. Nb4 {[%emt 0:01:30]} Bb5 {[%emt 0:00:06]} 102. h4 {[%emt 0:00:18]} Ke6 {[%emt 0:00:44]} 103. Ke4 {[%emt 0:00:25]} Kf6 {[%emt 0:00:11]} 104. Nc2 {[%emt 0:00:06]} Bf1 {[%emt 0:00:33]} 105. Kf4 {[%emt 0:01:27]} Ke6 {[%emt 0:00:29]} 106. Ne3 {[%emt 0:01:18]} Bd3 {[%emt 0:00:24]} 107. h5 {[%emt 0:00:28]} Be2 {[%emt 0:01:12]} 108. h6 {[%emt 0:00:29]} Bd3 {[%emt 0:00:05]} 109. Ng4 $1 {[%emt 0:00:11]} Kd5 {[%emt 0:01:33]} 110. Ne5 {[%emt 0:00:04]} Bb1 {[%emt 0:00:17]} 111. Nd7 {[%emt 0:00:02]} Bd3 {[%emt 0:00:39]} 112. Kg5 {[%emt 0:00:40]} Ke6 {[%emt 0:00:15]} 113. Nb8 {[%emt 0:00:27]} Bb5 {[%emt 0:00:37]} 114. Kf4 {[%emt 0:00:26]} Kf6 {[%emt 0:00:34]} 115. Nd7+ $1 {[%emt 0:00:27]} Kg6 {[%emt 0:00:32]} 116. Ke5 $1 {[%emt 0:00:24]} Kxh6 {[%emt 0:00:07]} 117. Kd6 {[%emt 0:00:12]} Kg5 {[%emt 0:00:14]} 118. Ne5 {[%emt 0:00:20]} h5 {[%emt 0:00:06]} 119. Nxc6 {[%emt 0:00:02]} h4 {[%emt 0:00:47]} 120. Nd4 {[%emt 0:01:45]} h3 {[%emt 0:00:12]} 121. Nxb5 {[%emt 0:01:34]} h2 {[%emt 0:00:28]} 122. c6 $1 {[%emt 0:00:02]} h1=Q {[%emt 0:00:06]} 123. c7 $1 {[%emt 0:00:01]} Qb7 {[%emt 0:01:32]} 124. Na7 {[%emt 0:00:27]} Qb4+ {[%emt 0:01:21]} 125. Kc6 {[%emt 0:00:13]} Qxa5 {[%emt 0:01:47]} 126. c8=Q {[%emt 0:02:23]} Qc3+ {[%emt 0:00:02]} 127. Kb7 {[%emt 0:00:00]} Qxc8+ {[%emt 0:00:04]} 128. Nxc8 {[%emt 0:00:00]} 1/2-1/2

[Event "1st Doppelbauer Kiel IM 2022"]
[Site "Kiel"]
[Date "2022.06.30"]
[Round "2.4"]
[White "Fromm, Marius"]
[Black "Junge, Ralph"]
[Result "1-0"]
[ECO "C18"]
[WhiteElo "2317"]
[BlackElo "2224"]
[Annotator "TA"]
[PlyCount "61"]
[EventDate "2022.06.30"]
[EventType "tourn"]
[EventCountry "GER"]
[SourceTitle "playchess.com"]
[Source "ChessBase"]
[SourceQuality "1"]
[TimeControl "40/5400+30:1800+30"]

{[%evp 17,61,25,27,14,32,33,28,25,21,21,19,16,25,20,46,45,42,41,50,47,45,38,72,69,86,53,101,103,98,100,144,154,142,137,170,177,247,144,145,134,424,437,355,418,418,418]} 1. e4 {[%emt 0:00:30]} e6 {[%emt 0:00:30]} 2. d4 {[%emt 0:00:30]} d5 {[%emt 0:00:30]} 3. Nc3 {[%emt 0:00:30]} Bb4 {[%emt 0:00:30]} 4. e5 {[%emt 0:00:30]} c5 {[%emt 0:00:30]} 5. a3 {[%emt 0:00:30]} Ba5 {[%emt 0:00:30]} 6. b4 {[%emt 0:00:30]} cxd4 {[%emt 0:00:30]} 7. Nb5 {[%emt 0:00:30]} Bc7 {[%emt 0:00:30]} 8. f4 {[%emt 0:00:30]} Bd7 {[%emt 0:19:25]} 9. Nxc7+ {[%emt 0:00:00]} Qxc7 {[%emt 0:00:04]} 10. Nf3 {[%emt 0:00:00] C18: French: 3 Nc3 Bb4: Main line: 7 h4 and 7 Qg4.} Nc6 {[%emt 0:04:54]} 11. Bb2 {[%emt 0:00:00]} Nge7 {[%emt 0:07:44]} 12. Bd3 {[%emt 0:00:12] White has an edge.} Nf5 {[%emt 0:09:04]} 13. Bxf5 {[%emt 0:00:52]} exf5 {[%emt 0:00:06]} 14. O-O {[%emt 0:01:10][%cal Bh1f1,Bf1f3,Bf3g3][%mdl 32]} O-O {[%emt 0:06:14]} 15. Bxd4 {[%emt 0:10:22]} Nxd4 {[%emt 0:14:53]} 16. Nxd4 {[%emt 0:00:02] [#]} Ba4 $146 {[%emt 0:00:15]} ({Predecessor:} 16... a5 17. Qd3 Rfc8 18. Rfd1 Qc4 19. Rab1 b5 20. Qxc4 Rxc4 21. bxa5 Rxa5 22. Rb3 h6 23. g3 Kh7 24. Kf2 g5 {½-½ (24) Weissleder,W (2477)-Schwenteck,C (2272) GER email 2007}) 17. Kh1 {[%emt 0:23:30]} g6 {[%emt 0:09:21]} 18. Rf3 {[%emt 0:09:55]} Qb6 {[%emt 0:01:49]} 19. Rg3 {[%emt 0:08:30]} Kh8 {[%emt 0:02:11]} 20. Qd2 {[%emt 0:00:10]} Rac8 {[%emt 0:02:14]} 21. Re1 {[%emt 0:00:55]} Rc4 {[%emt 0:00:20]} (21... Bd7 $14) 22. c3 $16 {[%emt 0:00:07]} Bd7 {[%emt 0:06:49] [#] Prevents e6.} 23. h4 $1 {[%emt 0:01:09][%cal Bh2h4,Bh4h5][%mdl 32]} Be6 {[%emt 0:05:18]} 24. h5 $1 {[%emt 0:00:21]} Kg7 {[%emt 0:01:39]} 25. Rh3 {[%emt 0:02:24] White is much more active.} Rfc8 {[%emt 0:00:32]} 26. Ree3 {[%emt 0:00:46]} Qc7 {[%emt 0:02:04]} (26... Rg8 $142 27. hxg6 hxg6) 27. Qf2 {[%emt 0:00:33]} (27. hxg6 $18 hxg6 28. Nb5) 27... Qe7 {[%emt 0:00:45]} 28. Qg3 {[%emt 0:05:57] [#] Threatens to win with hxg6.} a6 $2 {[%emt 0:00:37][%mdl 8192]} (28... h6 $16) 29. hxg6 $18 {[%emt 0:01:44]} fxg6 {[%emt 0:00:51]} 30. Qg5 {[%emt 0:00:19] Prevents h6.} R4c7 {[%emt 0:02:26]} 31. Qf6+ {[%emt 0:00:09] Weighted Error Value: White=0.08 (flawless) /Black=0.30} 1-0

[Event "1st Doppelbauer Kiel IM 2022"]
[Site "Kiel"]
[Date "2022.06.30"]
[Round "2.5"]
[White "Lanka, Zigurds"]
[Black "Zavgorodniy, Sergiy"]
[Result "1/2-1/2"]
[ECO "B32"]
[WhiteElo "2397"]
[BlackElo "2423"]
[Annotator "TA"]
[PlyCount "45"]
[EventDate "2022.06.30"]
[EventType "tourn"]
[EventCountry "GER"]
[SourceTitle "playchess.com"]
[Source "ChessBase"]
[SourceQuality "1"]
[TimeControl "40/5400+30:1800+30"]

{[%evp 15,45,45,45,0,2,-11,-7,-18,-10,-30,-21,-29,-12,-13,0,6,56,56,95,94,81,0,2,-14,-15,-16,12,-13,0,-8,0,0]} 1. e4 {[%emt 0:03:39]} c5 {[%emt 0:00:12]} 2. Nf3 {[%emt 0:00:14]} Nc6 {[%emt 0:00:08]} 3. d4 {[%emt 0:00:39]} cxd4 {[%emt 0:00:07]} 4. Nxd4 {[%emt 0:00:08]} e5 {[%emt 0:00:08]} 5. Nb5 {[%emt 0:00:08]} a6 {[%emt 0:00:07]} 6. Nd6+ {[%emt 0:00:05]} Bxd6 {[%emt 0:00:08]} 7. Qxd6 {[%emt 0:00:06]} Qe7 {[%emt 0:00:08]} 8. Qxe7+ {[%emt 0:00:38]} Ngxe7 {[%emt 0:00:09]} 9. c3 {[%emt 0:00:15] B32: Sicilian: Löwenthal and Kalashnikov Variations.} d5 {[%emt 0:00:23]} 10. exd5 {[%emt 0:00:10]} Nxd5 {[%emt 0:00:07]} 11. Bd3 {[%emt 0:00:10]} Be6 {[%emt 0:00:45]} 12. O-O {[%emt 0:00:12] [#]} O-O-O $146 {[%emt 0:00:13]} ({Predecessor:} 12... Rd8 13. Bc2 O-O 14. Re1 Rd7 15. Nd2 Nf4 16. Ne4 Nd3 17. Bxd3 Rxd3 18. Nc5 Rd6 19. Nxb7 Rd5 20. Be3 Rb5 21. Nc5 Rxb2 22. Nxe6 fxe6 {½-½ (22) Schulz,B (1882)-Krueger,G (1815) Mecklenburg VP 2016}) 13. Bc2 {[%emt 0:00:15]} f6 {[%emt 0:00:46]} 14. Re1 {[%emt 0:00:19]} g5 {[%emt 0:00:41]} 15. Nd2 {[%emt 0:00:13]} Nf4 {[%emt 0:02:14]} (15... h6 $11) 16. Ne4 $14 {[%emt 0:00:20]} Rhf8 {[%emt 0:00:12]} 17. Be3 {[%emt 0:01:38]} Kc7 {[%emt 0:00:57]} 18. Ng3 {[%emt 0:01:19]} (18. Nc5 $16 {Black must now prevent Bxf4.} Bg8 19. f3) 18... Nd3 $36 {[%emt 0:02:06][%mdl 2048] Black fights for an advantage. The position is equal.} 19. Bxd3 {[%emt 0:00:35]} Rxd3 {[%emt 0:00:07]} 20. f3 {[%emt 0:00:15]} Ne7 {[%emt 0:02:07]} 21. a4 {[%emt 0:01:06]} Nf5 {[%emt 0:00:23]} 22. Nxf5 {[%emt 0:00:07]} Bxf5 {[%emt 0:00:05]} 23. a5 {[%emt 0:00:49] Weighted Error Value: White=0.18 (very precise) /Black=0.14 (very precise)} 1/2-1/2